[Event "34th GER-ch Seniors-50 2022"]
[Site "Magdeburg"]
[Date "2022.08.13"]
[Round "2.4"]
[White "Moritz, Hartmut"]
[Black "De Roda Husman, Juan"]
[Result "1/2-1/2"]
[ECO "C00"]
[WhiteElo "2057"]
[BlackElo "2266"]
[Annotator "TA"]
[PlyCount "104"]
[EventDate "2022.08.12"]
[EventType "swiss"]
[EventCountry "GER"]
[SourceTitle "playchess.com"]
[Source "ChessBase"]
[SourceQuality "1"]
[TimeControl "40/5400+30:1800+30"]

{[%evp 9,104,0,0,-7,0,0,3,6,0,-15,0,-13,-4,-26,33,32,36,25,19,22,34,31,35,10,45,36,58,49,59,43,49,19,29,25,26,0,0,0,64,57,54,70,65,25,30,8,10,0,0,0,0,0,0,-29989,-29990,-29990,-441,-441,-441,-441,-441,-441,-441,-441,-437,-441,-429,-429,-429,-400,-291,-291,-278,-258,-5,-43,-12,-6303,-10604,-12850,-12850,-12476,-6326,-6319,-6315,-6311,-6211,-6311,0,0,0,-5322,0,-11,0,-255,0]} 1. e4 {[%emt 0:00:06]} c5 {[%emt 0:00:10]} 2. f4 {[%emt 0:00:48]} d5 {[%emt 0:01:00]} 3. e5 {[%emt 0:00:17]} Nc6 {[%emt 0:00:43]} 4. Nf3 {[%emt 0:00:22]} e6 {[%emt 0:01:21]} 5. c3 {[%emt 0:05:20]} Nh6 {[%emt 0:03:31]} 6. Be2 {[%emt 0:09:34] C00: French: Unusual White 2nd moves.} Nf5 {[%emt 0:06:16]} 7. O-O {[%emt 0:01:12]} h5 {[%emt 0:01:11]} 8. Na3 {[%emt 0:03:25] The position is equal.} Qb6 {[%emt 0:04:09] [#]} 9. Qb3 $146 {[%emt 0:04:43]} ({Predecessor:} 9. Nc2 c4+ 10. Kh1 h4 11. d4 cxd3 12. Ncd4 dxe2 13. Qxe2 Ncxd4 14. Nxd4 Nxd4 15. cxd4 {0-1 (23) Kolompar,J (2065)-Heim,F Wiesbaden 1996}) 9... Qa5 {[%emt 0:08:05]} 10. d3 {[%emt 0:10:51] Inhibits c4.} h4 {[%emt 0:12:55]} 11. Nc2 {[%emt 0:22:32]} Bd7 {[%emt 0:10:54]} (11... c4 $11 12. dxc4 Bc5+ 13. Rf2 Bxf2+ 14. Kxf2 dxc4 15. Bxc4 O-O) 12. Ne3 $14 {[%emt 0:05:43]} (12. Qxb7 $2 Rb8 13. Qxb8+ (13. b4 $2 cxb4 14. cxb4 Bxb4 $19) 13... Nxb8 $19) 12... g6 {[%emt 0:10:28]} 13. Nxf5 {[%emt 0:12:22]} (13. Qxb7 $2 Rb8 14. Qxb8+ (14. b4 $2 cxb4 15. cxb4 Bxb4 $19) 14... Nxb8 $19) 13... gxf5 {[%emt 0:00:26]} 14. Be3 {[%emt 0:01:37]} (14. Qxb7 $2 Rb8 15. Qxb8+ (15. b4 $2 cxb4 16. Qxb8+ Nxb8 $19) 15... Nxb8 $19) 14... Be7 {[%emt 0:04:24]} 15. d4 {[%emt 0:01:17]} (15. Qxb7 $2 Rb8 16. Qxb8+ (16. b4 $2 cxb4 17. cxb4 Bxb4 $19) 16... Nxb8 $19) 15... O-O-O {[%emt 0:04:12]} 16. Rfd1 {[%emt 0:05:47]} cxd4 {[%emt 0:02:04]} 17. cxd4 {[%emt 0:01:28]} (17. Nxd4 Nxe5 18. fxe5 Ba4 $11) 17... Kb8 {[%emt 0:02:28]} 18. Bd2 {[%emt 0:01:20]} Qc7 {[%emt 0:02:23]} 19. Rdc1 {[%emt 0:01:46]} Rdg8 {[%emt 0:01:08]} 20. a4 {[%emt 0:01:16]} Ka8 {[%emt 0:02:57]} 21. a5 {[%emt 0:00:46]} a6 {[%emt 0:00:59]} 22. Rc2 {[%emt 0:03:39]} (22. Bb4 $5 Bxb4 23. Qxb4 $11) 22... Qd8 {[%emt 0:09:08]} 23. Rac1 {[%emt 0:00:47][%cal Oe2a6] Strongly threatening Bxa6!} Na7 {[%emt 0:02:28]} (23... Nxa5 $2 24. Bxa5 Qxa5 25. Rc7 $18) (23... Ka7 $11) 24. Bb4 {[%emt 0:01:28] Hoping for Bxe7. White is more active.} (24. Rc7 Bb5 $11) 24... Bxb4 {[%emt 0:01:18]} 25. Qxb4 {[%emt 0:00:02]} Bb5 {[%emt 0:00:15]} 26. Bxb5 {[%emt 0:00:52]} (26. Rc7 $5 {[%cal Re2b5]}) 26... Nxb5 {[%emt 0:00:02]} 27. Rc5 {[%emt 0:00:38]} Rg4 {[%emt 0:01:54]} 28. Rxb5 {[%emt 0:02:12]} axb5 {[%emt 0:00:02]} 29. Qxb5 {[%emt 0:00:05]} Qe8 {[%emt 0:01:51]} (29... Rxf4 30. a6 Qe7 31. axb7+ Qxb7 32. Qa4+ Qa7 33. Qc6+ Kb8 34. Rc5 Qa1+ 35. Kf2 Qxb2+ 36. Kg1 Qa1+ 37. Rc1 Qxc1+ 38. Qxc1 $18) 30. Qb6 {[%emt 0:01:11]} Qa4 $1 {[%emt 0:00:17] Threatens to win with ...Rhg8.} 31. b3 $2 {[%emt 0:01:08][%mdl 8192]} (31. Rc7 $2 Rb8 32. Kf2 Rxf4 $17) (31. h3 $11 Rgg8 32. Rc7) 31... Qa2 {[%emt 0:00:45][%csl Gg4][%cal Ra2g2]} 32. Ne1 {[%emt 0:00:54] [#]} Qd2 {[%emt 0:01:41]} (32... Rxg2+ $142 $3 {[%mdl 512]} 33. Nxg2 Rg8 34. Rc8+ Rxc8 35. Kf1 Rg8 36. Ne3 Qxh2 37. Ng4 Qh3+ 38. Ke1 Qxg4 39. Kd2 Qf3 40. Qd8+ Rxd8 41. Kc2 Qe2+ 42. Kc3 Rc8+ 43. Kb4 Qa2 44. a6 b6 45. Kb5 Qxb3#) 33. a6 $19 {[%emt 0:00:27][%csl Ga6][%cal Rb6b7]} Rxg2+ $1 {[%emt 0:00:16]} 34. Nxg2 {[%emt 0:00:08][%csl Ga6][%cal Rb6b7]} Qxc1+ {[%emt 0:00:02][%mdl 4096] Endgame KQR-KQN} 35. Kf2 {[%emt 0:00:20][%csl Ga6][%cal Rb6b7]} Qc2+ {[%emt 0:02:35]} 36. Ke3 {[%emt 0:00:46][%csl Ga6][%cal Rb6b7]} Qc3+ {[%emt 0:01:34]} ({Don't blunder} 36... Rb8 $2 37. axb7+ Rxb7 38. Qd8+ Ka7 39. Qa5+ Kb8 40. Qd8+ Qc8 41. Qd6+ Rc7 42. Qb4+ Qb7 43. Qf8+ Ka7 44. Qa3+ Qa6 45. Qxa6+ Kxa6 46. Nxh4 $19) 37. Kf2 {[%emt 0:00:06][%csl Ga6][%cal Rb6b7]} Qc6 {[%emt 0:02:01]} 38. axb7+ {[%emt 0:00:44]} Qxb7 {[%emt 0:00:05]} 39. Qa5+ {[%emt 0:00:30]} Kb8 {[%emt 0:00:57]} 40. Qa4 {[%emt 0:01:09]} h3 {[%emt 0:00:50]} 41. Ne1 {[%emt 0:06:11]} Rc8 $2 {[%emt 0:08:18]} (41... Kc7 $19 {White must now prevent ...Ra8.} 42. Qa3 Kd7 43. Qd6+ Ke8) 42. Nd3 $1 $11 {[%emt 0:00:45]} Qb6 {[%emt 0:02:12] ...Rc3 is the strong threat.} 43. Nc5 $2 {[%emt 0:01:03][%mdl 8192]} (43. Ke3 $11) 43... Rxc5 $19 {[%emt 0:00:23]} 44. dxc5 {[%emt 0:00:07]} Qxc5+ {[%emt 0:00:06] KQ-KQ} 45. Kf3 {[%emt 0:04:12]} Qc3+ {[%emt 0:00:35]} 46. Ke2 {[%emt 0:07:44]} Qc2+ {[%emt 0:01:08]} 47. Kf3 {[%emt 0:04:52]} Qe4+ {[%emt 0:00:27]} 48. Kf2 {[%emt 0:01:09]} Qg2+ $2 {[%emt 0:01:22]} (48... Qxa4 $1 $19 49. bxa4 Ka7) 49. Ke3 $11 {[%emt 0:00:12]} Qe4+ $2 {[%emt 0:00:47][%mdl 8192]} (49... Qg1+ $11 50. Kd3 Qf1+ 51. Ke3 Qg1+ 52. Kd3 Qd1+ 53. Kc3 Qe1+ 54. Kd4 Qg1+ 55. Kd3) 50. Kf2 $19 {[%emt 0:00:03] [#]} ({But not} 50. Qxe4 $2 fxe4 51. Kd4 Kc7 $19) 50... Qc2+ $2 {[%emt 0:00:28]} (50... Qxa4 $1 $19 51. bxa4 Ka7) 51. Ke3 {[%emt 0:00:17]} Qc3+ $2 {[%emt 0:00:33]} (51... Qc1+ $11 52. Kd3 Qd1+ 53. Ke3 Qe1+ 54. Kd4 Qf2+ 55. Kd3 Kc7) 52. Ke2 {[%emt 0:01:20] [#]} Qc2+ $2 {[%emt 0:20:26] Weighted Error Value: White=0.30/Black=0.56} ({Black should play} 52... Kb7 $1 $19 {[%cal Rb7b6]} 53. Qb5+ (53. Qd7+ $2 Ka6 $19) 53... Kc7) 1/2-1/2

[Event "34th GER-ch Seniors-50 2022"]
[Site "Magdeburg"]
[Date "2022.08.13"]
[Round "2.5"]
[White "Wacker, Peter"]
[Black "Schroeder, Volker"]
[Result "1-0"]
[ECO "B01"]
[WhiteElo "2263"]
[BlackElo "2070"]
[Annotator "TA"]
[PlyCount "51"]
[EventDate "2022.08.12"]
[EventType "swiss"]
[EventCountry "GER"]
[SourceTitle "playchess.com"]
[Source "ChessBase"]
[SourceQuality "1"]
[TimeControl "40/5400+30:1800+30"]

{[%evp 13,51,22,24,21,22,29,34,22,137,122,333,322,320,310,296,274,493,448,514,502,718,658,1092,1084,1190,1052,1345,774,939,929,888,829,1486,776,29988,29986,29992,29991,29991,29992]} 1. e4 {[%emt 0:00:05]} d5 {[%emt 0:00:25]} 2. exd5 {[%emt 0:00:09]} Qxd5 {[%emt 0:00:04]} 3. Nc3 {[%emt 0:00:22]} Qa5 {[%emt 0:00:03]} 4. d4 {[%emt 0:00:29]} Nf6 {[%emt 0:00:05]} 5. Bc4 {[%emt 0:00:47]} Bg4 {[%emt 0:00:22]} 6. f3 {[%emt 0:01:35]} Bf5 {[%emt 0:00:03]} 7. Nge2 {[%emt 0:01:10]} e6 {[%emt 0:05:00] 7...Nbd7 is vanishing.} 8. g4 {[%emt 0:06:43][%cal Bg2g4,Bg4g5,Bg5g6][%mdl 32] B01: Scandinavian Defence.} Bg6 {[%emt 0:00:21]} 9. h4 {[%emt 0:00:10] [#] h5 is the strong threat.} h5 {[%emt 0:04:51]} 10. Nf4 {[%emt 0:08:35] [#] White is slightly better.} Bh7 $146 {[%emt 0:01:32]} (10... Nc6 $1 $11) ({Predecessor:} 10... Nbd7 11. g5 Nd5 12. Bxd5 exd5 13. Qe2+ Kd8 14. Nxg6 fxg6 15. O-O Qb4 16. Qd3 Qd6 {1-0 (26) Sidorov,A (2006)-Osipov,V (1760) Irkutsk 2014}) 11. g5 $16 {[%emt 0:02:04] Strongly threatening Qe2.} Nfd7 $2 {[%emt 0:05:03]} (11... Nc6 $16) 12. g6 $1 $18 {[%emt 0:03:34]} (12. Nxh5 Nc6 13. Bb3 O-O-O $11) 12... Bxg6 {[%emt 0:00:15]} 13. Nxg6 {[%emt 0:02:08]} fxg6 {[%emt 0:00:04]} 14. Qe2 {[%emt 0:04:51]} (14. Bxe6 $6 Nc6 15. d5 Ne7 $18) 14... e5 {[%emt 0:03:15]} (14... Bb4 {is a better defense.} 15. Bd2 (15. Qxe6+ Kd8 $18) 15... O-O) 15. Bd2 {[%emt 0:05:12] Hoping for Nd5.} ({Weaker is} 15. Qe4 Bb4 16. Bg5 Bxc3+ 17. Kf1 Qb6 18. bxc3 Rf8) 15... Bb4 {[%emt 0:12:32]} 16. Qe4 {[%emt 0:03:38][%csl LRb7,LRg6] And now 0-0-0 would win.} Qb6 {[%emt 0:11:21]} 17. O-O-O {[%emt 0:05:43] Black must now prevent Bg5.} Na6 {[%emt 0:05:09]} 18. Bg5 {[%emt 0:04:31]} Bxc3 {[%emt 0:12:09]} 19. bxc3 {[%emt 0:01:08]} Rf8 {[%emt 0:06:53]} 20. f4 {[%emt 0:00:39]} Rf5 {[%emt 0:00:58]} 21. fxe5 {[%emt 0:00:23] aiming for Qd5.} Qa5 {[%emt 0:04:39]} 22. Rdf1 {[%emt 0:12:19]} Qxc3 {[%emt 0:03:06]} 23. Qd5 {[%emt 0:02:14] White threatens Qe6+ and mate.} Nac5 {[%emt 0:12:06] Inhibits Qe6+.} 24. dxc5 {[%emt 0:05:12] White mates.} Qa3+ {[%emt 0:02:26]} 25. Kb1 {[%emt 0:07:37]} Qb4+ {[%emt 0:00:43] [#]} 26. Bb3 $1 {[%emt 0:00:57] White took control after the opening.  Weighted Error Value: White=0.20 (precise) /Black=1.22} 1-0

[Event "34th GER-ch Seniors-50 2022"]
[Site "Magdeburg"]
[Date "2022.08.13"]
[Round "2.6"]
[White "Wimmer, Alfred"]
[Black "Koscielski, Janusz"]
[Result "0-1"]
[ECO "A49"]
[WhiteElo "2047"]
[BlackElo "2255"]
[Annotator "RC"]
[PlyCount "64"]
[EventDate "2022.08.12"]
[EventType "swiss"]
[EventCountry "GER"]
[SourceTitle "playchess.com"]
[Source "ChessBase"]
[SourceQuality "1"]
[TimeControl "40/5400+30:1800+30"]

1. Nf3 {[%emt 0:00:14]} Nf6 {[%emt 0:00:23]} 2. g3 {[%emt 0:00:15]} g6 {[%emt 0:00:22]} 3. b3 {[%emt 0:00:13]} Bg7 {[%emt 0:00:18]} 4. Bb2 {[%emt 0:00:12]} O-O {[%emt 0:00:29]} 5. Bg2 {[%emt 0:00:09]} d6 {[%emt 0:00:36]} 6. d4 {[%emt 0:00:31]} e5 {[%emt 0:01:01]} 7. dxe5 {[%emt 0:01:06]} Nfd7 {[%emt 0:00:25]} 8. O-O {[%emt 0:02:00]} dxe5 {[%emt 0:00:36]} 9. e4 {[%emt 0:04:03]} Nc6 {[%emt 0:04:50]} 10. a4 {[%emt 0:00:54]} a5 {[%emt 0:04:10]} 11. Na3 {[%emt 0:00:31]} Nc5 {[%emt 0:11:24]} 12. Qxd8 {[%emt 0:05:41]} Rxd8 {[%emt 0:00:29]} 13. Rfe1 {[%emt 0:12:47]} f6 {[%emt 0:06:15]} 14. Nb5 {[%emt 0:09:21]} Na6 {[%emt 0:01:47]} 15. Red1 {[%emt 0:05:37]} Be6 {[%emt 0:02:36]} 16. Ne1 {[%emt 0:08:37]} Bf8 {[%emt 0:04:29]} 17. Ba3 {[%emt 0:04:56]} Ncb4 {[%emt 0:07:46]} 18. Bf3 {[%emt 0:06:31]} c6 {[%emt 0:03:51]} 19. Nc3 {[%emt 0:00:06]} Bh6 {[%emt 0:08:33]} 20. Bc1 {[%emt 0:02:16]} Rxd1 {[%emt 0:04:09]} 21. Bxd1 {[%emt 0:04:26]} Bxc1 {[%emt 0:00:33]} 22. Rxc1 {[%emt 0:00:10]} Nc5 {[%emt 0:01:51]} 23. f3 {[%emt 0:03:34]} Kf7 {[%emt 0:05:39]} 24. Kf2 {[%emt 0:01:30]} Bxb3 {[%emt 0:03:23]} 25. cxb3 {[%emt 0:03:07]} Ncd3+ {[%emt 0:00:12]} 26. Nxd3 {[%emt 0:01:10]} Nxd3+ {[%emt 0:00:07]} 27. Ke3 {[%emt 0:00:15]} Nxc1 {[%emt 0:00:05]} 28. Kd2 {[%emt 0:00:17]} Nxb3+ {[%emt 0:00:13]} 29. Bxb3+ {[%emt 0:00:07]} Ke7 {[%emt 0:00:15]} 30. Ke3 {[%emt 0:02:08]} Kd6 {[%emt 0:01:49]} 31. f4 {[%emt 0:01:17]} Kc5 {[%emt 0:02:36]} 32. fxe5 {[%emt 0:02:34]} fxe5 {[%emt 0:00:13]} 0-1

[Event "34th GER-ch Seniors-50 2022"]
[Site "Magdeburg"]
[Date "2022.08.13"]
[Round "2.7"]
[White "Roettinger, Eugen"]
[Black "Heck, Norbert"]
[Result "1/2-1/2"]
[ECO "A48"]
[WhiteElo "2035"]
[BlackElo "2249"]
[Annotator "TA"]
[PlyCount "60"]
[EventDate "2022.08.12"]
[EventType "swiss"]
[EventCountry "GER"]
[SourceTitle "playchess.com"]
[Source "ChessBase"]
[SourceQuality "1"]
[TimeControl "40/5400+30:1800+30"]

{[%evp 13,60,10,10,11,29,10,45,59,75,81,98,82,87,90,129,53,122,81,79,72,67,65,156,158,184,175,163,28,7,-9,-9,-9,-6,-6,-5,-5,-3,-3,-7,-11,-21,-14,-11,-23,50,55,47,20,31]} 1. d4 {[%emt 0:00:06]} g6 {[%emt 0:00:23]} 2. Bf4 {[%emt 0:00:31]} Bg7 {[%emt 0:00:09]} 3. e3 {[%emt 0:00:05]} Nf6 {[%emt 0:00:16]} 4. Nf3 {[%emt 0:01:04]} O-O {[%emt 0:00:12]} 5. h3 {[%emt 0:00:07]} d6 {[%emt 0:00:08]} 6. Be2 {[%emt 0:00:35]} Nbd7 {[%emt 0:00:16] 6...c5 is setting a new trend.} 7. O-O {[%emt 0:00:59]} Qe8 {[%emt 0:01:05]} 8. Nc3 {[%emt 0:07:50] A48: 1 d4 Nf6 2 Nf3 g6: Torre, London and Colle Systems.} c6 {[%emt 0:01:04]} 9. Bh2 {[%emt 0:00:56] [#]} Nb6 $146 {[%emt 0:12:23]} ({Predecessor:} 9... e5 10. d5 Qe7 11. Qd2 Nc5 12. dxc6 bxc6 13. Rad1 Nfe4 14. Nxe4 Nxe4 15. Qb4 Nc5 {0-1 (67) Wonner,S (1598)-Dubois,M (1826) Saint Paul Trois Chateaux 2013}) 10. e4 {[%emt 0:06:16][%cal Be3e4,Be4e5][%mdl 32] White is slightly better.} Be6 {[%emt 0:05:24]} 11. b3 {[%emt 0:13:20]} h6 {[%emt 0:00:22]} 12. Qd3 {[%emt 0:00:35]} d5 {[%emt 0:05:43]} 13. e5 {[%emt 0:17:40]} Nfd7 {[%emt 0:01:12]} 14. Nh4 {[%emt 0:01:31]} (14. a4 $16) 14... c5 {[%emt 0:01:29]} (14... g5 $1 $14) 15. Nb5 {[%emt 0:00:24] [#] Strongly threatening Nc7.} Qd8 {[%emt 0:00:55] Inhibits Nc7.} 16. c3 {[%emt 0:00:33][%cal Bc2c3,Bc3d4][%mdl 32] White is more active.} a6 {[%emt 0:00:10]} 17. Na3 {[%emt 0:00:04]} Rc8 {[%emt 0:01:49]} (17... cxd4 $14 18. cxd4 g5) 18. f4 $16 {[%emt 0:00:45]} cxd4 {[%emt 0:09:01]} 19. cxd4 {[%emt 0:00:13]} Qc7 {[%emt 0:04:09][%cal Od7c5] [#]} 20. Rf3 {[%emt 0:00:55]} ({Resist} 20. f5 $6 gxf5 21. Bf4 (21. Nxf5 Bxf5 22. Qxf5 e6 $14) 21... Qc3 $16) (20. g4 $1 $18) 20... Nc5 $1 $36 {[%emt 0:03:15][%mdl 2048] White is under pressure.} 21. Qe3 {[%emt 0:01:16] And now Rc1 would win.} Ne4 {[%emt 0:00:20]} 22. f5 {[%emt 0:04:08]} gxf5 {[%emt 0:00:22]} 23. Nxf5 {[%emt 0:07:41]} Bxf5 {[%emt 0:00:15]} 24. Rxf5 {[%emt 0:00:09]} Qc3 {[%emt 0:01:13]} 25. Qxc3 {[%emt 0:02:13]} Rxc3 {[%emt 0:00:41]} 26. Rf3 {[%emt 0:02:13]} Rfc8 {[%emt 0:01:19]} 27. Bf4 {[%emt 0:01:38]} e6 {[%emt 0:01:48]} 28. Bd3 {[%emt 0:02:33]} Bf8 {[%emt 0:04:07]} (28... f5 $11) 29. Nb1 $1 $14 {[%emt 0:00:25]} R3c6 {[%emt 0:04:41]} 30. Nd2 {[%emt 0:04:08]} (30. Kh2 $5 {[%cal Rb1d2]}) 30... Rc1+ {[%emt 0:41:19] Weighted Error Value: White=0.18 (very precise) /Black=0.19 (very precise)} 1/2-1/2

[Event "34th GER-ch Seniors-50 2022"]
[Site "Magdeburg"]
[Date "2022.08.13"]
[Round "2.8"]
[White "Heller, Achim"]
[Black "Krause, Ullrich"]
[Result "0-1"]
[ECO "D41"]
[WhiteElo "2025"]
[BlackElo "2190"]
[Annotator "TA"]
[PlyCount "104"]
[EventDate "2022.08.12"]
[EventType "swiss"]
[EventCountry "GER"]
[SourceTitle "playchess.com"]
[Source "ChessBase"]
[SourceQuality "1"]
[TimeControl "40/5400+30:1800+30"]

{[%evp 23,104,25,41,22,36,47,89,73,81,72,73,61,70,0,0,8,108,105,111,106,189,106,131,127,192,68,53,41,50,0,29,20,80,72,66,29,56,0,58,0,41,-8,0,-41,-57,-25,-25,-66,-13,-163,0,0,0,-9,285,270,679,325,283,-295,-234,-363,-343,-538,-454,-535,-429,-810,-651,-740,-722,-977,-862,-3475,-3101,-5748,-5688,-5622,-4909,-29944,-29939,-29985,-29969]} 1. d4 {[%emt 0:00:04]} d5 {[%emt 0:00:25]} 2. c4 {[%emt 0:00:06]} e6 {[%emt 0:00:04]} 3. Nc3 {[%emt 0:00:18]} Nf6 {[%emt 0:00:07]} 4. cxd5 {[%emt 0:00:16]} Nxd5 {[%emt 0:00:07]} 5. e4 {[%emt 0:00:30]} Nxc3 {[%emt 0:00:06]} 6. bxc3 {[%emt 0:00:04]} c5 {[%emt 0:00:07]} 7. Nf3 {[%emt 0:00:47]} cxd4 {[%emt 0:00:10]} 8. cxd4 {[%emt 0:00:09]} Bb4+ {[%emt 0:00:05]} 9. Bd2 {[%emt 0:00:37]} Bxd2+ {[%emt 0:00:07]} 10. Qxd2 {[%emt 0:00:10]} O-O {[%emt 0:00:08]} 11. Bc4 {[%emt 0:01:58]} Nd7 {[%emt 0:00:14]} 12. O-O {[%emt 0:01:41]} Nf6 {[%emt 0:00:10]} 13. e5 {[%emt 0:03:59] D41: Queen's Gambit Declined: Semi-Tarrasch with 5 cxd5.} Nd5 {[%emt 0:01:40]} 14. Ng5 {[%emt 0:01:24]} h6 {[%emt 0:11:45]} 15. Ne4 {[%emt 0:02:27] White is better.} Nb6 {[%emt 0:06:15]} 16. Bb3 {[%emt 0:04:59]} Bd7 {[%emt 0:00:48][%cal Bc8d7,Bd7c6,Bc6d5][%mdl 32]} 17. f4 {[%emt 0:04:52]} Bc6 {[%emt 0:13:03]} 18. Nd6 {[%emt 0:03:25]} (18. Rae1 $14) 18... Nc8 $1 $11 {[%emt 0:01:27] [#]} 19. Nxf7 $146 {[%emt 0:02:07]} ({Predecessor:} 19. Nxc8 Rxc8 20. f5 exf5 21. d5 Bb5 22. Rxf5 Qb6+ 23. Kh1 Bc4 24. Bxc4 Rxc4 25. Rd1 {1-0 (40) Schuh,H (2312)-Martin,S (2220) Germany 2000}) 19... Rxf7 {[%emt 0:06:32]} (19... Kxf7 $11 {keeps the balance.} 20. f5 Bd5) 20. Bxe6 $16 {[%emt 0:00:59]} Bd5 {[%emt 0:00:29]} 21. Bxf7+ {[%emt 0:00:40]} Kxf7 {[%emt 0:01:50]} (21... Bxf7 $16 {was called for.} 22. f5 Qg5 23. Qxg5 hxg5) 22. Rae1 {[%emt 0:05:24]} ({White should try} 22. Rac1 $1 $18) 22... Nb6 {[%emt 0:07:57]} 23. f5 {[%emt 0:02:33]} Nc4 {[%emt 0:02:51]} (23... Qg5 $16 24. e6+ Ke8 25. Qxg5 hxg5) 24. e6+ {[%emt 0:01:59]} (24. Qc2 $1 $18 {Strongly threatening e6+.} Qh4 25. e6+ Kf6 26. Qd3) 24... Kg8 $14 {[%emt 0:01:30]} 25. Qe2 {[%emt 0:06:12]} Qf6 {[%emt 0:02:33]} 26. Qd3 {[%emt 0:03:05]} (26. Rf2 $14) 26... Re8 {[%emt 0:05:46]} 27. Rf2 {[%emt 0:03:50]} b5 {[%emt 0:04:45]} (27... Nb6 $11) 28. h3 {[%emt 0:03:31]} a6 {[%emt 0:01:59]} 29. Rc1 {[%emt 0:09:07]} Re7 {[%emt 0:07:41]} 30. Re1 {[%emt 0:03:56]} (30. Rb1 $14) 30... a5 {[%emt 0:07:52]} ({Better is} 30... Re8 $1 $11) 31. Rb1 {[%emt 0:02:02]} ({White should play} 31. Qb3 $14) 31... Rb7 {[%emt 0:02:08]} 32. Re2 {[%emt 0:01:45]} (32. Rbf1 $14) 32... Nd6 $1 $11 {[%emt 0:02:39]} 33. Re5 {[%emt 0:01:43]} Bxa2 {[%emt 0:02:13]} 34. Rbe1 {[%emt 0:02:44]} Bc4 {[%emt 0:02:21]} 35. Qf3 {[%emt 0:11:58]} Qe7 {[%emt 0:02:54]} (35... Ra7 $15) 36. Qc6 {[%emt 0:03:40]} (36. Rc5 $1 $11 Rb8 37. Rc6) 36... Qc7 $2 {[%emt 0:02:44]} (36... Rb8 $19 {And now ...a4 would win.} 37. Rc1 a4) 37. Qf3 $1 {[%emt 0:05:52]} Qe7 {[%emt 0:00:28]} 38. Rc5 {[%emt 0:03:53] Black must now prevent Rc6.} a4 $2 {[%emt 0:01:55][%mdl 8192]} (38... Rb8 $11) 39. Rc6 $1 $18 {[%emt 0:00:37][%cal Oc6d6]} Rc7 $2 {[%emt 0:01:51]} (39... Ra7 40. f6 Qxf6) 40. Rxc7 {[%emt 0:00:49]} (40. f6 $142 gxf6 41. Qg3+ Kh8 42. Rxd6) 40... Qxc7 {[%emt 0:00:16] [#]} 41. Qa8+ {[%emt 0:30:39][%mdl 8192]} (41. f6 $1 $18 {[%cal Rf6f7] Hoping for f7+.} b4 42. f7+ Nxf7 43. e7 (43. exf7+ Bxf7 44. Qa8+ Kh7 $16)) 41... Kh7 $19 {[%emt 0:31:58] ...Qe7 is the strong threat.} 42. e7 {[%emt 0:01:18]} (42. f6 {keeps fighting.} gxf6 43. e7) 42... Bf7 {[%emt 0:00:00] Really sharp!} 43. Qf3 {[%emt 0:00:00]} (43. f6 $142 gxf6 44. Qd8) 43... Ne8 {[%emt 0:00:00]} 44. Qd3 {[%emt 0:00:00]} Qc4 {[%emt 0:00:00]} 45. Qd2 {[%emt 0:00:00]} (45. Qxc4 $142 Bxc4 46. Kf2) 45... b4 {[%emt 0:00:00][%cal Bb5b4,Bb4b3,Bb3b2][%mdl 32] Threatens to win with ...a3.} 46. Rc1 {[%emt 0:00:00]} Qb5 {[%emt 0:00:00]} 47. Rc5 {[%emt 0:00:00]} Qb6 {[%emt 0:00:00]} 48. Qc2 {[%emt 0:00:00]} b3 {[%emt 0:00:00]} 49. Qd3 {[%emt 0:00:00]} b2 {[%emt 0:00:00]} 50. Rb5 {[%emt 0:00:00]} Qa6 {[%emt 0:00:00] ( -> ...a3)} 51. f6+ {[%emt 0:00:00]} g6 {[%emt 0:00:30]} 52. Qf1 {[%emt 0:00:00]} a3 {[%emt 0:00:50] Weighted Error Value: White=1.00/Black=0.41} ({Stronger than} 52... Bc4 {[#]} 53. Rxb2 $1 Bxf1 54. f7 $15) 0-1

[Event "34th GER-ch Seniors-50 2022"]
[Site "Magdeburg"]
[Date "2022.08.14"]
[Round "3.1"]
[White "Pitschka, Claus"]
[Black "Zude, Arno"]
[Result "1/2-1/2"]
[ECO "C56"]
[WhiteElo "2188"]
[BlackElo "2371"]
[Annotator "TA"]
[PlyCount "33"]
[EventDate "2022.08.12"]
[EventType "swiss"]
[EventCountry "GER"]
[SourceTitle "playchess.com"]
[Source "ChessBase"]
[SourceQuality "1"]
[TimeControl "40/5400+30:1800+30"]

{[%evp 21,33,-19,0,0,11,-5,-14,-12,0,0,0,-27,12,11]} 1. e4 {[%emt 0:02:53]} e5 {[%emt 0:00:14]} 2. Nf3 {[%emt 0:00:07]} Nc6 {[%emt 0:00:07]} 3. d4 {[%emt 0:00:10]} exd4 {[%emt 0:00:07]} 4. Bc4 {[%emt 0:00:06]} Nf6 {[%emt 0:03:02]} 5. e5 {[%emt 0:00:35]} d5 {[%emt 0:00:13]} 6. Bb5 {[%emt 0:00:21]} Ne4 {[%emt 0:00:13]} 7. Nxd4 {[%emt 0:00:27]} Bc5 {[%emt 0:02:53]} 8. Be3 {[%emt 0:02:11]} Bd7 {[%emt 0:10:32]} 9. Bxc6 {[%emt 0:00:59]} bxc6 {[%emt 0:00:10]} 10. O-O {[%emt 0:00:54] 10.Nd2 is vanishing.} Bb6 {[%emt 0:09:38]} 11. f3 {[%emt 0:08:37]} Ng5 {[%emt 0:00:23]} 12. f4 {[%emt 0:00:40] C56: Two Knights: 4 d4 exd4 5 0-0 Nxe4.} Ne4 {[%emt 0:00:11]} 13. Nc3 {[%emt 0:07:17]} Nxc3 {[%emt 0:03:35]} 14. bxc3 {[%emt 0:00:09]} Qe7 {[%emt 0:08:01]} 15. Qd2 {[%emt 0:07:01]} O-O {[%emt 0:19:46]} 16. Rae1 {[%emt 0:06:54] [#]} Bxd4 $146 {[%emt 0:18:09]} ({Predecessor:} 16... Rfe8 17. Nb3 Bf5 18. Qf2 Qd7 19. Nc5 Bxc5 20. Bxc5 Re6 21. h3 Rg6 22. Kh2 Rh6 {0-1 (53) Senlle Caride,M (2374)-Vasquez Schroder,R (2467) Figueira da Foz 2021}) 17. cxd4 {[%emt 0:05:48] An even fight not without its subleties.  Weighted Error Value: White=0.09 (flawless) /Black=0.12 (very precise)} 1/2-1/2